fUST/lending_fUST_20240118
["ID","MTS","AMOUNT","RATE_DAILY","PERIOD"]
[311982834,1705529441880,-2262.63,0.00022054,2]
[311982836,1705529441890,-500.0,0.00022054,2]
[311982838,1705529441899,-611.26,0.00022054,2]
[311982840,1705529441908,-500.0,0.00022054,2]
[311982842,1705529441918,-3424.54,0.00022054,2]
[311982844,1705529441926,-3533.26,0.00022054,2]
[311982846,1705529441935,-500.0,0.00022054,2]
[311982848,1705529441945,-986.89,0.00022054,2]
[311982850,1705529441958,-500.0,0.00022054,2]
[311982852,1705529441966,-3168.18,0.00022054,2]
[311982854,1705529441975,-500.0,0.00022054,2]
[311982856,1705529441984,-500.0,0.00022054,2]
[311982858,1705529441994,-500.0,0.00022054,2]
[311982860,1705529442005,-624.87,0.00022054,2]
[311982862,1705529442014,-500.0,0.00022054,2]
[311982864,1705529442023,-500.0,0.00022054,2]
[311982866,1705529442034,-1202.86,0.00022054,2]
[311982868,1705529442043,-500.0,0.00022054,2]
[311982870,1705529442052,-7276.52,0.00022054,2]
[311982872,1705529442061,-500.0,0.00022054,2]
[311982873,1705529442071,-703.73,0.00022054,2]
[311982875,1705529442080,-644.63,0.00022054,2]
[311982877,1705529442089,-500.0,0.00022054,2]
[311982879,1705529442098,-421.22353423,0.00022054,2]
[311982881,1705529442107,-1421.82,0.00022054,2]
[311982883,1705529442117,-749.79,0.00022054,2]
[311982885,1705529442126,-500.0,0.00022054,2]
[311982887,1705529442135,-500.0,0.00022054,2]
[311982889,1705529442144,-500.0,0.00022054,2]
[311982891,1705529442153,-500.0,0.00022054,2]
[311982893,1705529442162,-500.0,0.00022054,2]
[311982895,1705529442171,-500.0,0.00022054,2]
[311982897,1705529442180,-500.0,0.00022054,2]
[311982899,1705529442190,-272.60348073,0.00022054,2]
[311982901,1705529442198,-500.0,0.00022054,2]
[311982903,1705529442207,-599.62,0.00022054,2]
[311982905,1705529442216,-475.69273896,0.00022137,2]
[311982907,1705529442226,-276.48432479,0.00022137,2]
[311982909,1705529442235,-200.22735332,0.00022137,2]
[311982911,1705529442244,-309.94529346,0.00022138,2]
[311982913,1705529442255,-500.0,0.0002219,2]
[311982915,1705529442264,-710.87,0.00022191,2]
[311982916,1705529442273,-500.0,0.00022191,2]
[311982918,1705529442283,-500.0,0.00022191,2]
[311982920,1705529442292,-500.0,0.00022191,2]
[311982922,1705529442301,-500.0,0.00022191,2]
[311982924,1705529442311,-500.0,0.00022191,2]
[311982926,1705529442320,-500.0,0.00022191,2]
[311982928,1705529442329,-500.0,0.00022191,2]
[311982930,1705529442338,-500.0,0.00022191,2]
[311982932,1705529442347,-500.0,0.00022191,2]
[311982934,1705529442356,-500.0,0.00022191,2]
[311982936,1705529442366,-500.0,0.00022191,2]
[311982938,1705529442375,-500.0,0.00022191,2]
[311982940,1705529442384,-500.0,0.00022191,2]
[311982942,1705529442393,-500.0,0.00022191,2]
[311982944,1705529442402,-500.0,0.00022191,2]
[311982946,1705529442411,-500.0,0.00022191,2]
[311982948,1705529442420,-1266.12,0.00022191,2]
[311982950,1705529442428,-1672.34,0.00022191,2]
[311982952,1705529442438,-500.0,0.00022191,2]
[311982954,1705529442447,-500.0,0.00022191,2]
[311982956,1705529442456,-500.0,0.00022191,2]
[311982958,1705529442464,-403.27603319,0.00022191,2]
[311982968,1705529442545,-153.49030981,0.00022191,2]
[311982971,1705529442554,-500.0,0.00022191,2]
[311982973,1705529442563,-500.0,0.00022191,2]
[311982975,1705529442573,-621.42,0.00022191,2]
[311982977,1705529442582,-500.0,0.00022191,2]
[311982979,1705529442591,-626.84555893,0.00022191,2]
[311982982,1705529442599,-500.0,0.00022191,2]
[311982984,1705529442609,-605.36,0.00022191,2]
[311982986,1705529442618,-500.0,0.00022191,2]
[311982987,1705529442627,-1225.94,0.00022191,2]
[311982989,1705529442636,-500.0,0.00022191,2]
[311982991,1705529442645,-500.0,0.00022191,2]
[311982993,1705529442654,-500.0,0.00022191,2]
[311982996,1705529442663,-500.0,0.00022191,2]
[311982998,1705529442671,-750.96,0.00022191,2]
[311983000,1705529442680,-500.0,0.00022191,2]
[311983002,1705529442689,-500.0,0.00022191,2]
[311983004,1705529442698,-500.0,0.00022191,2]
[311983006,1705529442707,-890.84,0.00022191,2]
[311983008,1705529442716,-608.05,0.00022191,2]
[311983010,1705529442725,-7480.23,0.00022191,2]
[311983012,1705529442735,-5837.46,0.00022191,2]
[311983014,1705529442744,-500.0,0.00022191,2]
[311983016,1705529442753,-500.0,0.00022191,2]
[311983017,1705529442762,-2262.63,0.00022191,2]
[311983019,1705529442771,-611.26,0.00022191,2]
[311983021,1705529442781,-3424.54,0.00022191,2]
[311983023,1705529442790,-3533.26,0.00022191,2]
[311983025,1705529442800,-500.0,0.00022191,2]
[311983027,1705529442809,-986.89,0.00022191,2]
[311983029,1705529442819,-500.0,0.00022191,2]
[311983031,1705529442828,-3168.18,0.00022191,2]
[311983033,1705529442837,-500.0,0.00022191,2]
[311983035,1705529442846,-500.0,0.00022191,2]
[311983037,1705529442855,-500.0,0.00022191,2]
[311983039,1705529442864,-624.87,0.00022191,2]
[311983041,1705529442873,-500.0,0.00022191,2]
[311983043,1705529442882,-1202.86,0.00022191,2]
[311983045,1705529442890,-500.0,0.00022191,2]
[311983046,1705529442899,-7276.52,0.00022191,2]
[311983048,1705529442909,-500.0,0.00022191,2]
[311983050,1705529442918,-703.73,0.00022191,2]
[311983052,1705529442927,-644.63,0.00022191,2]
[311983054,1705529442936,-1421.82,0.00022191,2]
[311983056,1705529442945,-749.79,0.00022191,2]
[311983058,1705529442958,-500.0,0.00022191,2]
[311983060,1705529442967,-500.0,0.00022191,2]
[311983062,1705529442976,-500.0,0.00022191,2]
[311983064,1705529442985,-500.0,0.00022191,2]
[311983066,1705529442994,-500.0,0.00022191,2]
[311983068,1705529443005,-500.0,0.00022191,2]
[311983070,1705529443015,-500.0,0.00022191,2]
[311983072,1705529443024,-599.62,0.00022191,2]
[311983074,1705529443034,-6253.4729554,0.00022221,2]
[311983076,1705529443044,-710.87,0.00022328,2]
[311983078,1705529443053,-500.0,0.00022328,2]
[311983080,1705529443062,-500.0,0.00022328,2]
[311983082,1705529443072,-500.0,0.00022328,2]
[311983084,1705529443080,-500.0,0.00022328,2]
[311983086,1705529443089,-500.0,0.00022328,2]
[311983087,1705529443098,-500.0,0.00022328,2]
[311983089,1705529443108,-500.0,0.00022328,2]
[311983091,1705529443117,-500.0,0.00022328,2]
[311983093,1705529443127,-500.0,0.00022328,2]
[311983095,1705529443136,-500.0,0.00022328,2]
[311983097,1705529443146,-500.0,0.00022328,2]
[311983099,1705529443155,-500.0,0.00022328,2]
[311983101,1705529443166,-500.0,0.00022328,2]
[311983103,1705529443175,-449.53845178,0.00022328,2]
[311983106,1705529443191,-50.46154822,0.00022328,2]
[311983108,1705529443199,-505.57499033,0.00022328,2]
[311983110,1705529443208,-500.0,0.00022328,2]
[311983111,1705529443217,-1266.12,0.00022328,2]
[311983113,1705529443226,-1672.34,0.00022328,2]
[311983115,1705529443235,-500.0,0.00022328,2]
[311983117,1705529443244,-187.94505026,0.00022328,2]
[311983126,1705529443441,-500.0,0.00021917,2]
[311983127,1705529443450,-273.11213901,0.00022328,2]
[311983128,1705529443459,-227.34534385,0.00022328,2]
[311983165,1705530306462,198.7007568,0.00018466,2]
[311983166,1705530368551,3835.99564847,0.00018466,2]
[311983167,1705530386543,3866.70701623,0.00018466,2]
[311983168,1705530392278,175.3496467,0.00018466,2]
[311983169,1705530398254,154.9690062,0.00018466,2]
[311983171,1705530416253,154.9690062,0.00018466,2]
[311983172,1705530438270,271.00771028,0.00018466,2]
[311983173,1705530464865,24900.0,0.00018247,2]
[311983174,1705530602245,652.872096,0.00018306,2]
[311983301,1705530638509,-154.9690062,0.00018588,3]
[311983303,1705530638520,-166.4504165,0.00018588,2]
[311983305,1705530638530,-902.78853112,0.00018589,2]
[311983307,1705530638539,-154.9690062,0.00018589,2]
[311983309,1705530638548,-561.15323628,0.0001859,2]
[311983311,1705530638557,-21667.37739351,0.0001859,2]
[311983313,1705530638567,-5170.62465856,0.0001859,2]
[311983317,1705530638593,-5351.96196071,0.0001859,2]
[311983319,1705530638602,-977.19623955,0.00018591,2]
[311983321,1705530638611,-3127.11427386,0.00018591,2]
[311983324,1705530638621,-5998.93667877,0.00018592,2]
[311983326,1705530638629,-2000.88810436,0.00018593,2]
[311983330,1705530638639,-3043.73357375,0.00018599,2]
[311983332,1705530638648,-3290.9517547,0.00018608,2]
[311983334,1705530638657,-3000.0,0.00018608,2]
[311983336,1705530638666,-3173.8186524,0.00018812,2]
[311983338,1705530638675,-167.6475739,0.00019241,2]
[311983340,1705530638684,-200.22735332,0.00019552,2]
[311983342,1705530638693,-276.48432479,0.00019552,2]
[311983344,1705530638703,-309.94529346,0.00019553,2]
[311983346,1705530638712,-806.16817907,0.00019757,2]
[311983348,1705530638722,-475.69273896,0.0002,2]
[311983350,1705530638731,-2239.17858574,0.00020091,2]
[311983352,1705530638740,-250.0,0.00020095,2]
[311983354,1705530638749,-200.0,0.0002045,2]
[311983356,1705530638758,-1815.68321298,0.00021,2]
[311983358,1705530638768,-327.18048,0.00021,2]
[311983360,1705530638777,-1000.0,0.000211,2]
[311983362,1705530638785,-3430.97,0.00021142,3]
[311983364,1705530638795,-2859.14,0.00021142,3]
[311983376,1705530638892,-4708.58698345,0.00021152,2]
[311983378,1705530638902,-3481.1678536,0.00021377,2]
[311983380,1705530638911,-171.55545115,0.00021717,2]
[311983382,1705530638921,-4117.16,0.00021804,3]
[311983384,1705530638930,-594.38972109,0.00021813,2]
[311983386,1705530638939,-402.90810268,0.00021814,2]
[311983388,1705530638948,-521.45877329,0.00021814,2]
[311983390,1705530638958,-13703.21181576,0.00021814,2]
[311983392,1705530638967,-361.02080012,0.00021814,2]
[311983394,1705530638976,-154.98450155,0.00021815,2]
[311983396,1705530638985,-20848.89855073,0.00021815,2]
[311983398,1705530638994,-1292.03766784,0.00021815,2]
[311983400,1705530639004,-615.97967559,0.00021815,2]
[311983402,1705530639013,-166.76500768,0.00021815,2]
[311983404,1705530639024,-260.52342957,0.00021816,2]
[311983406,1705530639033,-1091.52381426,0.00021816,3]
[311983408,1705530639042,-258801.39419724,0.00021817,2]
[311983410,1705530639051,-171.55545113,0.00021887,2]
[311983412,1705530639060,-500.0,0.00021917,2]
[311983414,1705530639069,-511.57846325,0.00021917,2]
[311983416,1705530639079,-500.0,0.00021917,2]
[311983418,1705530639088,-500.0,0.00021917,2]
[311983420,1705530639097,-496.84283628,0.00021917,2]
[311983422,1705530639106,-500.0,0.00021917,2]
[311983424,1705530639115,-500.0,0.00021917,2]
[311983426,1705530639125,-500.0,0.00021917,2]
[311983428,1705530639133,-500.0,0.00021917,2]
[311983430,1705530639142,-500.0,0.00021917,2]
[311983432,1705530639153,-500.0,0.00021917,2]
[311983434,1705530639162,-500.0,0.00021917,2]
[311983436,1705530639171,-500.0,0.00021917,2]
[311983438,1705530639180,-457.80157163,0.00021917,2]
[311983440,1705530639189,-500.0,0.00021917,2]
[311983442,1705530639198,-500.0,0.00021917,2]
[311983444,1705530639207,-500.0,0.00021917,2]
[311983446,1705530639216,-500.0,0.00021917,2]
[311983448,1705530639226,-500.0,0.00021917,2]
[311983450,1705530639236,-500.0,0.00021917,2]
[311983452,1705530639245,-500.0,0.00021917,2]
[311983454,1705530639254,-500.0,0.00021917,2]
[311983456,1705530639263,-500.0,0.00021917,2]
[311983458,1705530639272,-500.0,0.00021917,2]
[311983460,1705530639281,-403.27603319,0.00021917,2]
[311983462,1705530639290,-500.0,0.00021917,2]
[311983464,1705530639299,-500.0,0.00021917,2]
[311983466,1705530639309,-500.0,0.00021917,2]
[311983468,1705530639319,-500.0,0.00021917,2]
[311983470,1705530639329,-500.0,0.00021917,2]
[311983472,1705530639343,-500.0,0.00021917,2]
[311983474,1705530639352,-500.0,0.00021917,2]
[311983476,1705530639360,-500.0,0.00021917,2]
[311983478,1705530639370,-532.33924089,0.00021917,2]
[311983480,1705530639378,-500.0,0.00021917,2]
[311983482,1705530639388,-500.0,0.00021917,2]
[311983484,1705530639397,-500.0,0.00021917,2]
[311983486,1705530639406,-500.0,0.00021917,2]
[311983488,1705530639415,-511.65056995,0.00021917,2]
[311983490,1705530639425,-500.0,0.00021917,2]
[311983492,1705530639435,-500.0,0.00021917,2]
[311983494,1705530639443,-364.85779853,0.00021917,2]
[311983496,1705530639452,-500.0,0.00021917,2]
[311983498,1705530639461,-325.42261473,0.00021917,2]
[311983500,1705530639471,-500.0,0.00021917,2]
[311983502,1705530639479,-500.0,0.00021917,2]
[311983504,1705530639489,-562.39,0.00021917,2]
[311983506,1705530639497,-500.0,0.00021917,2]
[311983508,1705530639507,-500.0,0.00021917,2]
[311983510,1705530639516,-500.0,0.00021917,2]
[311983512,1705530639525,-500.0,0.00021917,2]
[311983514,1705530639534,-500.0,0.00021917,2]
[311983516,1705530639543,-500.0,0.00021917,2]
[311983518,1705530639553,-500.0,0.00021917,2]
[311983519,1705530639562,-500.0,0.00021917,2]
[311983522,1705530639571,-500.0,0.00021917,2]
[311983523,1705530639581,-500.0,0.00021917,2]
[311983526,1705530639590,-500.0,0.00021917,2]
[311983527,1705530639599,-500.0,0.00021917,2]
[311983529,1705530639608,-197.63957451,0.00021917,2]
[311983531,1705530639617,-1291.02,0.00021917,2]
[311983533,1705530639626,-500.0,0.00021917,2]
[311983535,1705530639635,-638.05377541,0.00021917,2]
[311983537,1705530639644,-500.0,0.00021917,2]
[311983539,1705530639653,-500.0,0.00021917,2]
[311983541,1705530639662,-1698.03,0.00021917,2]
[311983543,1705530639671,-500.0,0.00021917,2]
[311983545,1705530639680,-500.0,0.00021917,2]
[311983547,1705530639689,-500.0,0.00021917,2]
[311983549,1705530639698,-500.0,0.00021917,2]
[311983551,1705530639707,-500.0,0.00021917,2]
[311983553,1705530639716,-505.78802017,0.00021917,2]
[311983555,1705530639725,-500.0,0.00021917,2]
[311983558,1705530639736,-500.0,0.00021917,2]
[311983561,1705530639745,-254.97616014,0.00021917,2]
[311983563,1705530639755,-500.0,0.00021917,2]
[311983565,1705530639763,-500.0,0.00021917,2]
[311983567,1705530639772,-500.0,0.00021917,2]
[311983569,1705530639781,-500.0,0.00021917,2]
[311983571,1705530639790,-500.0,0.00021917,2]
[311983573,1705530639799,-500.0,0.00021917,2]
[311983575,1705530639808,-500.0,0.00021917,2]
[311983578,1705530639817,-388.70818294,0.00021917,2]
[311983580,1705530639826,-500.0,0.00021917,2]
[311983583,1705530639836,-500.0,0.00021917,2]
[311983585,1705530639845,-500.0,0.00021917,2]
[311983587,1705530639854,-597.00803997,0.00021917,2]
[311983589,1705530639863,-500.0,0.00021917,2]
[311983591,1705530639872,-500.0,0.00021917,2]
[311983593,1705530639882,-500.0,0.00021917,2]
[311983595,1705530639891,-646.18,0.00021917,2]
[311983597,1705530639901,-500.0,0.00021917,2]
[311983599,1705530639910,-500.0,0.00021917,2]
[311983601,1705530639920,-500.0,0.00021917,2]
[311983603,1705530639929,-500.0,0.00021917,2]
[311983605,1705530639938,-501.9226916,0.00021917,2]
[311983607,1705530639948,-500.0,0.00021917,2]
[311983609,1705530639957,-500.0,0.00021917,2]
[311983611,1705530639966,-262.02193479,0.00021917,2]
[311983614,1705530639980,-238.65822229,0.00021917,2]
[311983616,1705530639989,-500.0,0.00021917,2]
[311983618,1705530639998,-500.0,0.00021917,2]
[311983620,1705530640008,-510.23732956,0.00021917,2]
[311983622,1705530640017,-508.34806306,0.00021917,2]
[311983624,1705530640026,-607.63560946,0.00021917,2]
[311983626,1705530640035,-500.0,0.00021917,2]
[311983628,1705530640045,-500.0,0.00021917,2]
[311983630,1705530640054,-500.0,0.00021917,2]
[311983632,1705530640063,-317.56236444,0.00021917,2]
[311983786,1705530641518,-2382.62,0.00021132,3]
[311983788,1705530641528,-211.78977728,0.00021917,2]
[311983790,1705530641538,-642.12,0.00021917,2]
[311983792,1705530641547,-500.0,0.00021917,2]
[311983794,1705530641557,-500.0,0.00021917,2]
[311983796,1705530641566,-500.0,0.00021917,2]
[311983798,1705530641575,-500.0,0.00021917,2]
[311983800,1705530641584,-500.0,0.00021917,2]
[311983802,1705530641593,-500.0,0.00021917,2]
[311983804,1705530641603,-1232.5,0.00021917,2]
[311983806,1705530641612,-500.0,0.00021917,2]
[311983808,1705530641621,-500.0,0.00021917,2]
[311983810,1705530641630,-851.95,0.00021917,2]
[311983812,1705530641639,-632.72,0.00021917,2]
[311983814,1705530641649,-500.0,0.00021917,2]
[311983816,1705530641658,-500.0,0.00021917,2]
[311983818,1705530641667,-500.0,0.00021917,2]
[311983820,1705530641676,-500.0,0.00021917,2]
[311983822,1705530641686,-825.47,0.00021917,2]
[311983824,1705530641695,-27.03459838,0.00021917,2]
[311984053,1705530643890,-2636.3630578,0.00020095,2]
[311984055,1705530643899,-154.98450155,0.00021131,2]
[311984057,1705530643908,-413.91468837,0.00021917,2]
[311984059,1705530643919,-59.05071325,0.00021917,2]
[311984061,1705530643928,-258.19461194,0.00021917,2]
[311984063,1705530643937,-500.0,0.00021917,2]
[311984065,1705530643946,-500.0,0.00021917,2]
[311984067,1705530643955,-500.0,0.00021917,2]
[311984069,1705530643964,-500.0,0.00021917,2]
[311984071,1705530643974,-500.0,0.00021917,2]
[311984073,1705530643983,-920.40356657,0.00021917,2]
[311984075,1705530643994,-49.99643343,0.00021917,2]
[311984077,1705530644003,-500.0,0.00021917,2]
[311984079,1705530644013,-500.0,0.00021917,2]
[311984081,1705530644022,-500.0,0.00021917,2]
[311984083,1705530644031,-500.0,0.00021917,2]
[311984085,1705530644040,-500.0,0.00021917,2]
[311984087,1705530644049,-500.0,0.00021917,2]
[311984089,1705530644058,-6131.24,0.00021917,2]
[311984091,1705530644101,-500.0,0.00021917,2]
[311984093,1705530644110,-9163.34,0.00021917,2]
[311984095,1705530644119,-500.0,0.00021917,2]
[311984097,1705530644129,-500.0,0.00021917,2]
[311984099,1705530644138,-500.0,0.00021917,2]
[311984101,1705530644147,-500.0,0.00021917,2]
[311984103,1705530644157,-500.0,0.00021917,2]
[311984105,1705530644167,-500.0,0.00021917,2]
[311984107,1705530644177,-500.0,0.00021917,2]
[311984109,1705530644187,-500.0,0.00021917,2]
[311984111,1705530644196,-500.0,0.00021917,2]
[311984113,1705530644206,-500.0,0.00021917,2]
[311984115,1705530644215,-500.0,0.00021917,2]
[311984117,1705530644225,-500.0,0.00021917,2]
[311984119,1705530644234,-500.0,0.00021917,2]
[311984121,1705530644243,-2513.5,0.00021917,2]
[311984123,1705530644252,-501.34908397,0.00021917,2]
[311984125,1705530644266,-539.80634343,0.00021917,2]
[311984127,1705530644275,-500.0,0.00021917,2]
[311984129,1705530644284,-500.0,0.00021917,2]
[311984131,1705530644294,-500.0,0.00021917,2]
[311984133,1705530644303,-500.0,0.00021917,2]
[311984135,1705530644312,-500.0,0.00021917,2]
[311984137,1705530644321,-650.04,0.00021917,2]
[311984139,1705530644331,-500.0,0.00021917,2]
[311984141,1705530644340,-500.0,0.00021917,2]
[311984143,1705530644349,-500.0,0.00021917,2]
[311984144,1705530644360,-500.0,0.00021917,2]
[311984146,1705530644369,-500.0,0.00021917,2]
[311984149,1705530644379,-500.0,0.00021917,2]
[311984151,1705530644389,-500.0,0.00021917,2]
[311984152,1705530644398,-3621.26,0.00021917,2]
[311984155,1705530644408,-500.0,0.00021917,2]
[311984156,1705530644417,-500.0,0.00021917,2]
[311984158,1705530644426,-3336.61,0.00021917,2]
[311984160,1705530644435,-500.0,0.00021917,2]
[311984162,1705530644445,-500.0,0.00021917,2]
[311984164,1705530644454,-500.0,0.00021917,2]
[311984166,1705530644462,-500.0,0.00021917,2]
[311984168,1705530644471,-3531.1,0.00021917,2]
[311984170,1705530644480,-500.0,0.00021917,2]
[311984171,1705530644489,-7401.93,0.00021917,2]
[311984172,1705530644497,-1043.87,0.00021917,2]
[311984173,1705530644506,-500.0,0.00021917,2]
[311984174,1705530644521,-676.53,0.00021917,2]
[311984175,1705530644529,-500.0,0.00021917,2]
[311984177,1705530644538,-500.0,0.00021917,2]
[311984179,1705530644547,-1321.22,0.00021917,2]
[311984181,1705530644557,-500.0,0.00021917,2]
[311984183,1705530644566,-500.0,0.00021917,2]
[311984185,1705530644575,-500.0,0.00021917,2]
[311984187,1705530644585,-500.0,0.00021917,2]
[311984189,1705530644595,-501.62550056,0.00021917,2]
[311984191,1705530644603,-500.0,0.00021917,2]
[311984193,1705530644612,-500.0,0.00021917,2]
[311984195,1705530644620,-500.0,0.00021917,5]
[311984196,1705530644629,-226.6921614,0.00021917,2]
[311984198,1705530644638,-500.0,0.00021917,2]
[311984200,1705530644647,-500.85367027,0.00021917,2]
[311984202,1705530644656,-500.0,0.00021917,2]
[311984205,1705530644666,-383.87330556,0.00021917,2]
[311984207,1705530644675,-500.0,0.00021917,2]
[311984208,1705530644684,-500.0,0.00021917,2]
[311984210,1705530644693,-476.19454961,0.00021917,2]
[311984212,1705530644702,-500.0,0.00021917,2]
[311984215,1705530644712,-500.0,0.00021917,2]
[311984216,1705530644721,-736.07,0.00021917,2]
[311984218,1705530644730,-500.0,0.00021917,2]
[311984220,1705530644739,-500.0,0.00021917,2]
[311984222,1705530644748,-685.35,0.00021917,2]
[311984225,1705530644759,-500.0,0.00021917,2]
[311984227,1705530644769,-500.0,0.00021917,2]
[311984229,1705530644778,-500.0,0.00021917,2]
[311984231,1705530644787,-1485.58,0.00021917,2]
[311984233,1705530644796,-500.0,0.00021917,2]
[311984235,1705530644805,-500.0,0.00021917,2]
[311984237,1705530644814,-500.0,0.00021917,2]
[311984239,1705530644822,-500.0,0.00021917,2]
[311984241,1705530644831,-500.0,0.00021917,2]
[311984242,1705530644840,-1000.0,0.00021917,2]
[311984245,1705530644850,-500.0,0.00021917,2]
[311984247,1705530644858,-500.0,0.00021917,2]
[311984249,1705530644867,-500.0,0.00021917,2]
[311984251,1705530644877,-500.0,0.00021917,2]
[311984253,1705530644886,-500.0,0.00021917,2]
[311984255,1705530644894,-500.0,0.00021917,2]
[311984257,1705530644903,-500.0,0.00021917,2]
[311984259,1705530644912,-500.0,0.00021917,2]
[311984261,1705530644921,-500.0,0.00021917,2]
[311984263,1705530644931,-500.0,0.00021917,2]
[311984264,1705530644939,-630.87398484,0.00021917,2]
[311984267,1705530644949,-924.16,0.00021917,2]
[311984269,1705530644958,-452.10708087,0.00021917,2]
[311984271,1705530644966,-500.0,0.00021917,2]
[311984273,1705530644975,-500.0,0.00021917,2]
[311984274,1705530644985,-500.0,0.00021917,2]
[311984277,1705530644994,-500.0,0.00021917,2]
[311984279,1705530645003,-500.0,0.00021917,2]
[311984280,1705530645013,-500.0,0.00021917,2]
[311984282,1705530645022,-500.0,0.00021917,2]
[311984284,1705530645031,-500.0,0.00021917,2]
[311984286,1705530645040,-500.0,0.00021917,2]
[311984288,1705530645050,-174.74456145,0.00021917,2]
[311984291,1705530645059,-593.72122543,0.00021917,2]
[311984293,1705530645069,-500.0,0.00021917,2]
[311984294,1705530645079,-500.0,0.00021917,2]
[311984296,1705530645089,-501.00400068,0.00021917,2]
[311984299,1705530645098,-500.0,0.00021917,2]
[311984300,1705530645107,-500.0,0.00021917,2]
[311984302,1705530645116,-500.0,0.00021917,2]
[311984304,1705530645126,-500.0,0.00021917,2]
[311984306,1705530645135,-502.16920952,0.00021917,2]
[311984308,1705530645144,-500.0,0.00021917,2]
[311984310,1705530645153,-1181.15,0.00021917,2]
[311984313,1705530645162,-166.666666,0.00021918,2]
[311984314,1705530645171,-306.0,0.00021918,2]
[311984317,1705530645180,-153.0,0.00021918,2]
[311984319,1705530645190,-153.0,0.00021918,2]
[311984321,1705530645199,-500.0,0.00021953,2]
[311984322,1705530645208,-500.0,0.00021953,2]
[311984324,1705530645217,-247.93,0.00021953,2]
[311984327,1705530645226,-155.42680592,0.00021999,2]
[311984329,1705530645235,-425.53656097,0.00022,2]
[311984331,1705530645244,-3955.54830897,0.00022,2]
[311984332,1705530645253,-194.66062993,0.00022053,2]
[311984334,1705530645263,-500.0,0.00022054,2]
[311984336,1705530645272,-500.0,0.00022054,2]
[311984338,1705530645281,-500.0,0.00022054,2]
[311984340,1705530645289,-500.0,0.00022054,2]
[311984342,1705530645298,-500.0,0.00022054,2]
[311984344,1705530645307,-500.0,0.00022054,2]
[311984346,1705530645316,-500.0,0.00022054,2]
[311984348,1705530645325,-153.49030981,0.00022054,2]
[311984350,1705530645334,-500.0,0.00022054,2]
[311984352,1705530645343,-500.0,0.00022054,2]
[311984354,1705530645355,-500.0,0.00022054,2]
[311984356,1705530645363,-546.15047069,0.00022054,2]
[311984358,1705530645372,-500.0,0.00022054,2]
[311984360,1705530645381,-562.39,0.00022054,2]
[311984362,1705530645390,-500.0,0.00022054,2]
[311984364,1705530645400,-500.0,0.00022054,2]
[311984366,1705530645409,-1291.02,0.00022054,2]
[311984368,1705530645418,-500.0,0.00022054,2]
[311984370,1705530645427,-1698.03,0.00022054,2]
[311984372,1705530645437,-500.0,0.00022054,2]
[311984374,1705530645446,-500.0,0.00022054,2]
[311984383,1705530645519,-500.0,0.00022054,2]
[311984385,1705530645529,-500.0,0.00022054,2]
[311984387,1705530645537,-504.97146402,0.00022054,2]
[311984389,1705530645546,-500.0,0.00022054,2]
[311984391,1705530645556,-500.0,0.00022054,2]
[311984393,1705530645565,-500.0,0.00022054,2]